[Event "Late-Titled-Tuesday-Blitz-March-12-2024"]
[Site "Chess.com"]
[Date "2024.03.12"]
[Round "9"]
[White "tptagain"]
[Black "MyDream003"]
[Result "1/2-1/2"]
[WhiteElo "2967"]
[BlackElo "2788"]
[TimeControl "180+1"]
[EndTime "15:45:03 PDT"]
[Termination "Game drawn by repetition"]

1. Nf3 {[%clk 0:03:00.9]} 1... Nf6 {[%clk 0:02:56.1]} 2. d4 {[%clk 0:03:00.8]}
2... e6 {[%clk 0:02:51.6]} 3. Bg5 {[%clk 0:03:00.3]} 3... d5 {[%clk 0:02:40]} 4.
Nbd2 {[%clk 0:02:59.9]} 4... Be7 {[%clk 0:02:40]} 5. e3 {[%clk 0:02:59.8]} 5...
O-O {[%clk 0:02:39.9]} 6. Bd3 {[%clk 0:02:59.6]} 6... Nbd7 {[%clk 0:02:35.6]} 7.
c3 {[%clk 0:02:57.8]} 7... c5 {[%clk 0:02:33.5]} 8. O-O {[%clk 0:02:50.6]} 8...
Qc7 {[%clk 0:02:28]} 9. Rc1 {[%clk 0:02:27.6]} 9... c4 {[%clk 0:01:33]} 10. Bb1
{[%clk 0:02:26.2]} 10... Bd6 {[%clk 0:01:33.4]} 11. e4 {[%clk 0:02:23.9]} 11...
dxe4 {[%clk 0:01:26.5]} 12. Bxe4 {[%clk 0:02:10.2]} 12... Nxe4 {[%clk
0:01:24.7]} 13. Nxe4 {[%clk 0:02:11.1]} 13... b6 {[%clk 0:01:13.2]} 14. d5
{[%clk 0:02:06.2]} 14... e5 {[%clk 0:01:03.6]} 15. Re1 {[%clk 0:01:55.4]} 15...
Bb7 {[%clk 0:00:59.2]} 16. Qa4 {[%clk 0:01:36.9]} 16... Bxd5 {[%clk 0:00:45.8]}
17. Nxd6 {[%clk 0:01:36.9]} 17... Qxd6 {[%clk 0:00:46.7]} 18. Rcd1 {[%clk
0:01:36.7]} 18... Nc5 {[%clk 0:00:45.4]} 19. Qxc4 {[%clk 0:01:34.2]} 19... Bxc4
{[%clk 0:00:46.3]} 20. Rxd6 {[%clk 0:01:34.1]} 20... f6 {[%clk 0:00:46.2]} 21.
Be3 {[%clk 0:01:30.1]} 21... Nd3 {[%clk 0:00:45.6]} 22. Rb1 {[%clk 0:01:19.8]}
22... Bxa2 {[%clk 0:00:28.1]} 23. Ra1 {[%clk 0:01:19.4]} 23... Bf7 {[%clk
0:00:16.2]} 24. Rxd3 {[%clk 0:01:13.3]} 24... e4 {[%clk 0:00:16.8]} 25. Rd7
{[%clk 0:01:13.1]} 25... exf3 {[%clk 0:00:17.1]} 26. gxf3 {[%clk 0:01:04.4]}
26... a6 {[%clk 0:00:17.6]} 27. Rd6 {[%clk 0:00:58.2]} 27... b5 {[%clk
0:00:15.9]} 28. Raxa6 {[%clk 0:00:55.3]} 28... Rxa6 {[%clk 0:00:16.8]} 29. Rxa6
{[%clk 0:00:55.9]} 29... Bc4 {[%clk 0:00:16.1]} 30. Ra7 {[%clk 0:00:53.6]} 30...
h6 {[%clk 0:00:15.7]} 31. Kg2 {[%clk 0:00:53.7]} 31... Rf7 {[%clk 0:00:15.9]}
32. Ra8+ {[%clk 0:00:53.7]} 32... Kh7 {[%clk 0:00:16.3]} 33. Rb8 {[%clk
0:00:50.2]} 33... Rd7 {[%clk 0:00:16.5]} 34. b3 {[%clk 0:00:49.8]} 34... Bxb3
{[%clk 0:00:15.9]} 35. Rxb5 {[%clk 0:00:49.9]} 35... Bf7 {[%clk 0:00:16.2]} 36.
Rc5 {[%clk 0:00:49.9]} 36... Rb7 {[%clk 0:00:14.4]} 37. Kg3 {[%clk 0:00:47.3]}
37... Be6 {[%clk 0:00:11.6]} 38. h4 {[%clk 0:00:46.7]} 38... Kg6 {[%clk
0:00:10.8]} 39. Rc6 {[%clk 0:00:46.4]} 39... Kf7 {[%clk 0:00:11.2]} 40. c4
{[%clk 0:00:43.2]} 40... Rb8 {[%clk 0:00:09.9]} 41. c5 {[%clk 0:00:43.3]} 41...
Rc8 {[%clk 0:00:10]} 42. Ra6 {[%clk 0:00:42.9]} 42... Bd5 {[%clk 0:00:10.1]} 43.
Ra7+ {[%clk 0:00:42.8]} 43... Kg6 {[%clk 0:00:10.7]} 44. h5+ {[%clk 0:00:43.4]}
44... Kxh5 {[%clk 0:00:05.9]} 45. Rxg7 {[%clk 0:00:42.9]} 45... Rg8 {[%clk
0:00:06.1]} 46. Rxg8 {[%clk 0:00:40.2]} 46... Bxg8 {[%clk 0:00:07]} 47. c6
{[%clk 0:00:39.8]} 47... Be6 {[%clk 0:00:06.7]} 48. c7 {[%clk 0:00:39.7]} 48...
Kg6 {[%clk 0:00:07]} 49. Kf4 {[%clk 0:00:39.9]} 49... h5 {[%clk 0:00:07.4]} 50.
Ke4 {[%clk 0:00:39.6]} 50... Kf7 {[%clk 0:00:05.1]} 51. f4 {[%clk 0:00:36]}
51... Bc8 {[%clk 0:00:03.6]} 52. f5 {[%clk 0:00:35.1]} 52... Bb7+ {[%clk
0:00:04.1]} 53. Kf4 {[%clk 0:00:34.9]} 53... Bc8 {[%clk 0:00:05]} 54. Bd4 {[%clk
0:00:34.1]} 54... Bb7 {[%clk 0:00:04.7]} 55. Kg3 {[%clk 0:00:32.8]} 55... Bc8
{[%clk 0:00:04.9]} 56. Kh4 {[%clk 0:00:32.9]} 56... Bxf5 {[%clk 0:00:05.3]} 57.
Kxh5 {[%clk 0:00:33.4]} 57... Bc8 {[%clk 0:00:05.2]} 58. Kh6 {[%clk 0:00:33.1]}
58... Bb7 {[%clk 0:00:05]} 59. Kh5 {[%clk 0:00:32.7]} 59... Bc8 {[%clk
0:00:05.5]} 60. Kh4 {[%clk 0:00:33]} 60... Ke6 {[%clk 0:00:05.7]} 61. Bc3 {[%clk
0:00:29.6]} 61... Kf7 {[%clk 0:00:05.6]} 62. Kg3 {[%clk 0:00:29.3]} 62... Ke6
{[%clk 0:00:06.1]} 63. Kf4 {[%clk 0:00:29.5]} 63... f5 {[%clk 0:00:06]} 64. Kg5
{[%clk 0:00:29.2]} 64... Bb7 {[%clk 0:00:05.4]} 65. f4 {[%clk 0:00:26.9]} 65...
Bc8 {[%clk 0:00:05.3]} 66. Be5 {[%clk 0:00:26.5]} 66... Ke7 {[%clk 0:00:05.2]}
67. Kg6 {[%clk 0:00:25.8]} 67... Bd7 {[%clk 0:00:05.7]} 68. Bf6+ {[%clk
0:00:25.8]} 68... Ke6 {[%clk 0:00:04.9]} 69. Bg5 {[%clk 0:00:23.2]} 69... Bc8
{[%clk 0:00:05]} 70. Kg7 {[%clk 0:00:23.5]} 70... Kd5 {[%clk 0:00:04.6]} 71. Kf7
{[%clk 0:00:23]} 71... Kd6 {[%clk 0:00:04.2]} 72. Bd8 {[%clk 0:00:22.4]} 72...
Kd7 {[%clk 0:00:04.1]} 73. Kf8 {[%clk 0:00:19.6]} 73... Kc6 {[%clk 0:00:04.4]}
74. Ke7 {[%clk 0:00:19.3]} 74... Kb7 {[%clk 0:00:04.8]} 75. Kd6 {[%clk
0:00:19.3]} 75... Ka6 {[%clk 0:00:04.9]} 76. Kc6 {[%clk 0:00:18.9]} 76... Ka7
{[%clk 0:00:05.3]} 77. Bf6 {[%clk 0:00:18.8]} 77... Ka8 {[%clk 0:00:05.8]} 78.
Bd4 {[%clk 0:00:18.6]} 78... Be6 {[%clk 0:00:04.7]} 79. Kb6 {[%clk 0:00:11.4]}
79... Bc8 {[%clk 0:00:05]} 80. Kc6 {[%clk 0:00:10.2]} 80... Be6 {[%clk
0:00:04.9]} 81. Be3 {[%clk 0:00:10.7]} 81... Bc8 {[%clk 0:00:05.2]} 82. Kd6
{[%clk 0:00:11]} 82... Kb7 {[%clk 0:00:05.2]} 83. Bd4 {[%clk 0:00:11.5]} 83...
Ka6 {[%clk 0:00:05.3]} 84. Ke7 {[%clk 0:00:11.6]} 84... Kb7 {[%clk 0:00:06.2]}
85. Kd8 {[%clk 0:00:11.8]} 85... Be6 {[%clk 0:00:06.5]} 86. Be3 {[%clk
0:00:12.1]} 86... Bc8 {[%clk 0:00:07.4]} 87. Bc5 {[%clk 0:00:11.2]} 87... Be6
{[%clk 0:00:07.6]} 88. Bd4 {[%clk 0:00:11]} 88... Bc8 {[%clk 0:00:08.5]} 89. Ke7
{[%clk 0:00:11.4]} 89... Ka6 {[%clk 0:00:08.6]} 90. Be5 {[%clk 0:00:10]} 90...
Kb7 {[%clk 0:00:09.5]} 91. Kd8 {[%clk 0:00:09.7]} 91... Be6 {[%clk 0:00:09.8]}
92. Ke7 {[%clk 0:00:09.9]} 92... Bc8 {[%clk 0:00:10.7]} 93. Kd8 {[%clk
0:00:10.3]} 93... Be6 {[%clk 0:00:11]} 94. Ke7 {[%clk 0:00:11.2]} 94... Bc8
{[%clk 0:00:10.8]} 1/2-1/2

[Event "Late-Titled-Tuesday-Blitz-March-12-2024"]
[Site "Chess.com"]
[Date "2024.03.12"]
[Round "10"]
[White "BardArtem"]
[Black "shimastream"]
[Result "0-1"]
[WhiteElo "2783"]
[BlackElo "2995"]
[TimeControl "180+1"]
[EndTime "15:49:11 PDT"]
[Termination "shimastream won by resignation"]

1. e4 {[%clk 0:03:00]} 1... b6 {[%clk 0:02:59]} 2. d4 {[%clk 0:02:59.7]} 2...
Bb7 {[%clk 0:02:59.6]} 3. Bd3 {[%clk 0:02:59.8]} 3... e6 {[%clk 0:03:00.1]} 4.
Qe2 {[%clk 0:03:00.1]} 4... Nf6 {[%clk 0:02:57.9]} 5. d5 {[%clk 0:02:57.8]} 5...
Bc5 {[%clk 0:02:54.2]} 6. c4 {[%clk 0:02:49.7]} 6... d6 {[%clk 0:02:46.6]} 7.
Nf3 {[%clk 0:02:46.8]} 7... O-O {[%clk 0:02:43.1]} 8. O-O {[%clk 0:02:47.1]}
8... Re8 {[%clk 0:02:40.9]} 9. Qc2 {[%clk 0:02:46.8]} 9... Nbd7 {[%clk 0:02:32]}
10. b3 {[%clk 0:02:46.8]} 10... exd5 {[%clk 0:02:19.2]} 11. exd5 {[%clk
0:02:44.8]} 11... c6 {[%clk 0:02:17.8]} 12. dxc6 {[%clk 0:02:41.6]} 12... Bxc6
{[%clk 0:02:18.7]} 13. Nbd2 {[%clk 0:02:40.3]} 13... Ne5 {[%clk 0:02:17.4]} 14.
Nxe5 {[%clk 0:02:14.7]} 14... Rxe5 {[%clk 0:02:17]} 15. Bb2 {[%clk 0:02:04.2]}
15... Rh5 {[%clk 0:02:16.4]} 16. Bxf6 {[%clk 0:01:57.5]} 16... Qxf6 {[%clk
0:02:15.6]} 17. Be4 {[%clk 0:01:58.1]} 17... Bxf2+ {[%clk 0:01:57.1]} 18. Kh1
{[%clk 0:01:51.3]} 18... Rxh2+ {[%clk 0:01:56.8]} 0-1

[Event "Late-Titled-Tuesday-Blitz-March-12-2024"]
[Site "Chess.com"]
[Date "2024.03.12"]
[Round "10"]
[White "wild3000"]
[Black "ATM622"]
[Result "0-1"]
[WhiteElo "2389"]
[BlackElo "2481"]
[TimeControl "180+1"]
[EndTime "15:49:38 PDT"]
[Termination "ATM622 won by resignation"]

1. b3 {[%clk 0:02:44.4]} 1... e5 {[%clk 0:02:57.8]} 2. Bb2 {[%clk 0:02:44.4]}
2... d6 {[%clk 0:02:57.6]} 3. e4 {[%clk 0:02:44.2]} 3... Nf6 {[%clk 0:02:56.8]}
4. d3 {[%clk 0:02:44.4]} 4... c6 {[%clk 0:02:55]} 5. Ne2 {[%clk 0:02:44.1]} 5...
Nbd7 {[%clk 0:02:53.6]} 6. f4 {[%clk 0:02:42.9]} 6... Ng4 {[%clk 0:02:50.8]} 7.
Qd2 {[%clk 0:02:34.8]} 7... exf4 {[%clk 0:02:48.3]} 8. Qxf4 {[%clk 0:02:33.3]}
8... Nde5 {[%clk 0:02:48]} 9. Nd2 {[%clk 0:02:31.2]} 9... Be7 {[%clk 0:02:44.1]}
10. O-O-O {[%clk 0:02:26.3]} 10... Bg5 {[%clk 0:02:32]} 11. Qg3 {[%clk
0:02:25.8]} 11... Bh4 {[%clk 0:02:25.8]} 12. Qf4 {[%clk 0:02:23.9]} 12... g5
{[%clk 0:02:22.4]} 13. Bxe5 {[%clk 0:02:15.2]} 13... gxf4 {[%clk 0:02:16.5]} 14.
Bxh8 {[%clk 0:02:15]} 14... Ne3 {[%clk 0:02:15]} 15. g3 {[%clk 0:02:09.3]} 15...
Bf6 {[%clk 0:02:13.6]} 16. Bxf6 {[%clk 0:02:05.5]} 16... Qxf6 {[%clk 0:02:13]}
17. d4 {[%clk 0:01:52.3]} 17... Nxd1 {[%clk 0:02:11.2]} 18. Kxd1 {[%clk
0:01:51.9]} 18... f3 {[%clk 0:02:11.4]} 19. Nf4 {[%clk 0:01:46.3]} 19... Qxd4
{[%clk 0:02:09.5]} 20. Ke1 {[%clk 0:01:31.5]} 20... f2+ {[%clk 0:02:04.6]} 21.
Ke2 {[%clk 0:01:30.9]} 21... Bg4+ {[%clk 0:02:04.7]} 22. Nf3 {[%clk 0:01:30.9]}
22... Qxe4+ {[%clk 0:02:04.5]} 0-1

[Event "Late-Titled-Tuesday-Blitz-March-12-2024"]
[Site "Chess.com"]
[Date "2024.03.12"]
[Round "10"]
[White "ChristopherYoo"]
[Black "GMKrikor"]
[Result "1-0"]
[WhiteElo "3007"]
[BlackElo "2881"]
[TimeControl "180+1"]
[EndTime "15:49:43 PDT"]
[Termination "ChristopherYoo won by resignation"]

1. d4 {[%clk 0:03:00.9]} 1... Nf6 {[%clk 0:02:59.4]} 2. c4 {[%clk 0:03:01]} 2...
g6 {[%clk 0:02:59.5]} 3. Nc3 {[%clk 0:03:00.8]} 3... d5 {[%clk 0:02:59.9]} 4.
Bg5 {[%clk 0:03:00.2]} 4... Ne4 {[%clk 0:02:58]} 5. h4 {[%clk 0:02:59.7]} 5...
Nxg5 {[%clk 0:02:47.7]} 6. hxg5 {[%clk 0:02:58.9]} 6... dxc4 {[%clk 0:02:44.2]}
7. e3 {[%clk 0:02:59.2]} 7... Bg7 {[%clk 0:02:30.1]} 8. Bxc4 {[%clk 0:02:59]}
8... c5 {[%clk 0:02:28.2]} 9. Qf3 {[%clk 0:02:58.9]} 9... e6 {[%clk 0:02:19.9]}
10. dxc5 {[%clk 0:02:54]} 10... Qxg5 {[%clk 0:02:14.5]} 11. Ne4 {[%clk
0:02:51.3]} 11... Qe7 {[%clk 0:01:15.9]} 12. Nd6+ {[%clk 0:02:49.8]} 12... Kf8
{[%clk 0:00:44.3]} 13. Nxc8 {[%clk 0:02:48.3]} 13... Qxc5 {[%clk 0:00:43.5]} 14.
Qxb7 {[%clk 0:02:47]} 14... Qxc4 {[%clk 0:00:37.2]} 15. Nd6 {[%clk 0:02:45.8]}
1-0

[Event "Late-Titled-Tuesday-Blitz-March-12-2024"]
[Site "Chess.com"]
[Date "2024.03.12"]
[Round "10"]
[White "xasid81"]
[Black "AlexTruskavetsky"]
[Result "1-0"]
[WhiteElo "2590"]
[BlackElo "2669"]
[TimeControl "180+1"]
[EndTime "15:49:56 PDT"]
[Termination "xasid81 won by resignation"]

1. Nf3 {[%clk 0:03:00.3]} 1... Nf6 {[%clk 0:02:56.9]} 2. b4 {[%clk 0:03:00.1]}
2... e6 {[%clk 0:02:57.2]} 3. a3 {[%clk 0:02:59.9]} 3... c5 {[%clk 0:02:56.9]}
4. bxc5 {[%clk 0:02:58.8]} 4... Bxc5 {[%clk 0:02:57.8]} 5. d4 {[%clk 0:02:59]}
5... Be7 {[%clk 0:02:57.7]} 6. c4 {[%clk 0:02:58.9]} 6... d5 {[%clk 0:02:58.1]}
7. cxd5 {[%clk 0:02:58.2]} 7... exd5 {[%clk 0:02:58.6]} 8. Bd2 {[%clk
0:02:58.2]} 8... O-O {[%clk 0:02:59]} 9. Nc3 {[%clk 0:02:58.5]} 9... b6 {[%clk
0:02:58.2]} 10. e3 {[%clk 0:02:58.8]} 10... Ba6 {[%clk 0:02:58.6]} 11. Bxa6
{[%clk 0:02:58.7]} 11... Nxa6 {[%clk 0:02:59.5]} 12. O-O {[%clk 0:02:58.8]}
12... Nc7 {[%clk 0:03:00.1]} 13. Ne5 {[%clk 0:02:58.8]} 13... Bd6 {[%clk
0:02:58.9]} 14. f4 {[%clk 0:02:57.9]} 14... Nd7 {[%clk 0:02:58.8]} 15. Qb3
{[%clk 0:02:56.6]} 15... Nf6 {[%clk 0:02:57.6]} 16. a4 {[%clk 0:02:55.8]} 16...
Ne6 {[%clk 0:02:49.3]} 17. Nb5 {[%clk 0:02:48.3]} 17... Bxe5 {[%clk 0:02:46.5]}
18. fxe5 {[%clk 0:02:45.8]} 18... Ne4 {[%clk 0:02:47]} 19. Bb4 {[%clk 0:02:46]}
19... Re8 {[%clk 0:02:40.6]} 20. Nd6 {[%clk 0:02:41.7]} 20... Nxd6 {[%clk
0:02:40.8]} 21. Bxd6 {[%clk 0:02:41]} 21... Qg5 {[%clk 0:02:41]} 22. Rf3 {[%clk
0:02:35.7]} 22... Rad8 {[%clk 0:02:39.2]} 23. Qxd5 {[%clk 0:02:27.4]} 23... Rd7
{[%clk 0:02:33.5]} 24. Raf1 {[%clk 0:02:24.5]} 24... Red8 {[%clk 0:02:13.7]} 25.
Qxe6 {[%clk 0:02:16.5]} 25... h5 {[%clk 0:01:56.6]} 26. Rxf7 {[%clk 0:02:09.2]}
26... Qxe3+ {[%clk 0:01:56.3]} 27. Kh1 {[%clk 0:02:08.8]} 27... Rxf7 {[%clk
0:01:55.5]} 28. Qxf7+ {[%clk 0:02:09.7]} 28... Kh7 {[%clk 0:01:55.8]} 29. Qxh5+
{[%clk 0:02:09.9]} 29... Kg8 {[%clk 0:01:56.4]} 30. Qf7+ {[%clk 0:02:04.8]}
30... Kh7 {[%clk 0:01:56.7]} 31. Qf4 {[%clk 0:02:03.5]} 31... Qxf4 {[%clk
0:01:50.1]} 32. Rxf4 {[%clk 0:02:04.4]} 32... Rc8 {[%clk 0:01:50.8]} 33. h4
{[%clk 0:02:03.4]} 33... Rc4 {[%clk 0:01:48]} 34. e6 {[%clk 0:02:02.5]} 34...
Rxa4 {[%clk 0:01:48.3]} 35. e7 {[%clk 0:02:02]} 35... Ra1+ {[%clk 0:01:48.6]}
36. Kh2 {[%clk 0:02:02.1]} 36... Re1 {[%clk 0:01:49.5]} 37. Be5 {[%clk
0:02:02.2]} 37... Rxe5 {[%clk 0:01:47.8]} 38. dxe5 {[%clk 0:02:02.2]} 1-0

[Event "Late-Titled-Tuesday-Blitz-March-12-2024"]
[Site "Chess.com"]
[Date "2024.03.12"]
[Round "10"]
[White "Knjazj"]
[Black "rikchessmx"]
[Result "0-1"]
[WhiteElo "2007"]
[BlackElo "2271"]
[TimeControl "180+1"]
[EndTime "15:50:01 PDT"]
[Termination "rikchessmx won by checkmate"]

1. e4 {[%clk 0:03:00.9]} 1... e5 {[%clk 0:02:59]} 2. Nf3 {[%clk 0:02:59.8]} 2...
Nc6 {[%clk 0:02:59.9]} 3. Bc4 {[%clk 0:02:59]} 3... Bc5 {[%clk 0:02:59.2]} 4. c3
{[%clk 0:02:57.8]} 4... Qf6 {[%clk 0:02:58]} 5. O-O {[%clk 0:02:52.2]} 5... h6
{[%clk 0:02:55.8]} 6. d3 {[%clk 0:02:33.3]} 6... d6 {[%clk 0:02:54.4]} 7. Be3
{[%clk 0:02:33.5]} 7... Nge7 {[%clk 0:02:54]} 8. Bxc5 {[%clk 0:02:28.9]} 8...
dxc5 {[%clk 0:02:54.9]} 9. b3 {[%clk 0:02:26.8]} 9... O-O {[%clk 0:02:50.5]} 10.
Nbd2 {[%clk 0:02:23.2]} 10... Ng6 {[%clk 0:02:50.1]} 11. Bd5 {[%clk 0:02:15.4]}
11... Nce7 {[%clk 0:02:49.4]} 12. Bc4 {[%clk 0:02:07.1]} 12... Nf4 {[%clk
0:02:47.6]} 13. b4 {[%clk 0:01:58.7]} 13... cxb4 {[%clk 0:02:44.3]} 14. cxb4
{[%clk 0:01:56.3]} 14... Bg4 {[%clk 0:02:43]} 15. g3 {[%clk 0:01:41.9]} 15...
Nh3+ {[%clk 0:02:39.5]} 16. Kg2 {[%clk 0:01:41.4]} 16... Rad8 {[%clk 0:02:34.9]}
17. Qb3 {[%clk 0:01:39.3]} 17... c6 {[%clk 0:02:33]} 18. Qc3 {[%clk 0:01:35.2]}
18... Ng6 {[%clk 0:02:30.4]} 19. Ng1 {[%clk 0:01:28.6]} 19... Nhf4+ {[%clk
0:02:18.6]} 20. gxf4 {[%clk 0:01:24]} 20... Nxf4+ {[%clk 0:02:19.5]} 21. Kh1
{[%clk 0:01:23]} 21... Qg6 {[%clk 0:02:15.6]} 22. Qxe5 {[%clk 0:01:13.9]} 22...
Bf3+ {[%clk 0:02:12.4]} 23. Ndxf3 {[%clk 0:00:58]} 23... Qg2# {[%clk 0:02:10.7]}
0-1

[Event "Late-Titled-Tuesday-Blitz-March-12-2024"]
[Site "Chess.com"]
[Date "2024.03.12"]
[Round "10"]
[White "matagordo"]
[Black "Heydarli77"]
[Result "0-1"]
[WhiteElo "2296"]
[BlackElo "2406"]
[TimeControl "180+1"]
[EndTime "15:50:10 PDT"]
[Termination "Heydarli77 won by resignation"]

1. d4 {[%clk 0:03:00.9]} 1... d5 {[%clk 0:02:58]} 2. Bf4 {[%clk 0:02:59.9]} 2...
Nf6 {[%clk 0:02:56.4]} 3. e3 {[%clk 0:03:00.3]} 3... Bf5 {[%clk 0:02:55.1]} 4.
c4 {[%clk 0:02:59.8]} 4... e6 {[%clk 0:02:54]} 5. Qb3 {[%clk 0:02:57]} 5... Qc8
{[%clk 0:02:52.4]} 6. Nc3 {[%clk 0:02:55]} 6... dxc4 {[%clk 0:02:49]} 7. Bxc4
{[%clk 0:02:54.2]} 7... Nbd7 {[%clk 0:02:46]} 8. Nf3 {[%clk 0:02:53.9]} 8... Nb6
{[%clk 0:02:40.9]} 9. Be2 {[%clk 0:02:24.1]} 9... Bd6 {[%clk 0:02:36.8]} 10. Ne5
{[%clk 0:02:23.3]} 10... O-O {[%clk 0:02:32.5]} 11. O-O {[%clk 0:02:22]} 11...
Nfd5 {[%clk 0:02:28.7]} 12. Bg3 {[%clk 0:02:17.2]} 12... h6 {[%clk 0:02:23.4]}
13. a4 {[%clk 0:02:15.7]} 13... Bxe5 {[%clk 0:02:16.9]} 14. Bxe5 {[%clk
0:02:13.5]} 14... c6 {[%clk 0:02:15.3]} 15. Rac1 {[%clk 0:02:03.1]} 15... Nd7
{[%clk 0:02:13.6]} 16. Bg3 {[%clk 0:02:03]} 16... Bg6 {[%clk 0:02:12.7]} 17. Bf3
{[%clk 0:01:59.9]} 17... a5 {[%clk 0:02:03.8]} 18. Nxd5 {[%clk 0:01:58.8]} 18...
exd5 {[%clk 0:02:02.6]} 19. Bxd5 {[%clk 0:01:58.1]} 19... Nf6 {[%clk 0:02:01.3]}
20. Bf3 {[%clk 0:01:56.7]} 20... Ne4 {[%clk 0:01:57.7]} 21. d5 {[%clk
0:01:36.8]} 21... Nd2 {[%clk 0:01:55.2]} 22. Qb6 {[%clk 0:01:36.2]} 22... Nxf1
{[%clk 0:01:55]} 23. dxc6 {[%clk 0:01:28.2]} 23... Nxg3 {[%clk 0:01:49.5]} 24.
cxb7 {[%clk 0:01:25]} 24... Qxc1+ {[%clk 0:01:49]} 0-1

[Event "Late-Titled-Tuesday-Blitz-March-12-2024"]
[Site "Chess.com"]
[Date "2024.03.12"]
[Round "10"]
[White "Mikayel99"]
[Black "Alexei_Gubajdullin"]
[Result "0-1"]
[WhiteElo "2554"]
[BlackElo "2658"]
[TimeControl "180+1"]
[EndTime "15:50:15 PDT"]
[Termination "Alexei_Gubajdullin won by resignation"]

1. e4 {[%clk 0:03:00.9]} 1... g6 {[%clk 0:02:59.2]} 2. Nf3 {[%clk 0:02:59.4]}
2... Bg7 {[%clk 0:02:59.1]} 3. d4 {[%clk 0:02:55.4]} 3... d6 {[%clk 0:02:59.1]}
4. Nc3 {[%clk 0:02:56.1]} 4... a6 {[%clk 0:02:58.5]} 5. a4 {[%clk 0:02:55.8]}
5... Nf6 {[%clk 0:02:57.7]} 6. Be2 {[%clk 0:02:56]} 6... O-O {[%clk 0:02:57.7]}
7. O-O {[%clk 0:02:56.5]} 7... b6 {[%clk 0:02:57]} 8. h3 {[%clk 0:02:54.4]} 8...
Bb7 {[%clk 0:02:56.9]} 9. d5 {[%clk 0:02:54.9]} 9... c6 {[%clk 0:02:54.4]} 10.
Bc4 {[%clk 0:02:46]} 10... Nbd7 {[%clk 0:02:52.1]} 11. Re1 {[%clk 0:02:44.1]}
11... Qc8 {[%clk 0:02:51.6]} 12. dxc6 {[%clk 0:02:42.5]} 12... Bxc6 {[%clk
0:02:51.3]} 13. Bd5 {[%clk 0:02:37.4]} 13... e6 {[%clk 0:02:46.7]} 14. Bxc6
{[%clk 0:02:36.1]} 14... Qxc6 {[%clk 0:02:46.5]} 15. Bf4 {[%clk 0:02:31.4]}
15... e5 {[%clk 0:02:28]} 16. Bg5 {[%clk 0:02:23.3]} 16... b5 {[%clk 0:02:23.7]}
17. Bxf6 {[%clk 0:02:17.1]} 17... Nxf6 {[%clk 0:02:23.3]} 18. Qd3 {[%clk
0:02:06.6]} 18... b4 {[%clk 0:02:19.8]} 19. Nd1 {[%clk 0:02:06.6]} 19... Rac8
{[%clk 0:02:06.2]} 20. Re2 {[%clk 0:02:03.9]} 20... Rfe8 {[%clk 0:02:03.1]} 21.
b3 {[%clk 0:01:58.1]} 21... d5 {[%clk 0:02:02.1]} 22. Ng5 {[%clk 0:01:44.2]}
22... h6 {[%clk 0:01:58.3]} 23. exd5 {[%clk 0:01:44.2]} 23... Nxd5 {[%clk
0:01:55.8]} 24. Ne4 {[%clk 0:01:40.1]} 24... f5 {[%clk 0:01:46.1]} 25. Ng3
{[%clk 0:01:23.7]} 25... e4 {[%clk 0:01:42.4]} 0-1

[Event "Late-Titled-Tuesday-Blitz-March-12-2024"]
[Site "Chess.com"]
[Date "2024.03.12"]
[Round "10"]
[White "HansOnTwitch"]
[Black "CarlosAlbornoz"]
[Result "0-1"]
[WhiteElo "3086"]
[BlackElo "2849"]
[TimeControl "180+1"]
[EndTime "15:50:41 PDT"]
[Termination "CarlosAlbornoz won by resignation"]

1. e4 {[%clk 0:03:00.9]} 1... c5 {[%clk 0:02:59.4]} 2. Nf3 {[%clk 0:03:00.2]}
2... Nc6 {[%clk 0:02:59.7]} 3. Bb5 {[%clk 0:02:58]} 3... d6 {[%clk 0:02:59.9]}
4. O-O {[%clk 0:02:57.5]} 4... Bd7 {[%clk 0:03:00.3]} 5. Re1 {[%clk 0:02:57.6]}
5... Nf6 {[%clk 0:03:00.7]} 6. h3 {[%clk 0:02:56]} 6... Ne5 {[%clk 0:02:52.7]}
7. Bf1 {[%clk 0:02:39.1]} 7... Nxf3+ {[%clk 0:02:47.7]} 8. Qxf3 {[%clk 0:02:40]}
8... g5 {[%clk 0:02:34.3]} 9. Qd1 {[%clk 0:02:36.7]} 9... g4 {[%clk 0:02:33.7]}
10. hxg4 {[%clk 0:02:31.5]} 10... Nxg4 {[%clk 0:02:31.1]} 11. d3 {[%clk
0:02:27.7]} 11... e5 {[%clk 0:02:24.8]} 12. Nd2 {[%clk 0:02:26.4]} 12... Qh4
{[%clk 0:02:23.9]} 13. Nf3 {[%clk 0:02:22.8]} 13... Qxf2+ {[%clk 0:02:22.8]} 14.
Kh1 {[%clk 0:02:23.3]} 14... Qg3 {[%clk 0:02:06.6]} 15. Qe2 {[%clk 0:02:21.5]}
15... Rg8 {[%clk 0:01:52.3]} 16. Kg1 {[%clk 0:02:02.1]} 16... Rg6 {[%clk
0:01:52.3]} 17. Be3 {[%clk 0:02:01.6]} 17... Rh6 {[%clk 0:01:27.5]} 18. b4
{[%clk 0:01:56.6]} 18... f5 {[%clk 0:01:17.9]} 19. exf5 {[%clk 0:01:55.5]} 19...
Bc6 {[%clk 0:01:12.9]} 0-1